[Event "European Women Blitz-ch 2024"]
[Site "Monaco"]
[Date "2025.01.10"]
[Round "2.17"]
[White "Doluhanova, Evgeniya"]
[Black "Papp, Petra"]
[Result "1/2-1/2"]
[Annotator "TA"]
[ECO "B06"]
[WhiteElo "2273"]
[BlackElo "2235"]
[PlyCount "128"]
[EventDate "2025.01.06"]
[EventType "swiss"]
[EventCountry "MNC"]
[SourceTitle "playchess.com"]
[Source "ChessBase"]
[SourceQuality "1"]
[TimeControl "180+2"]

{[%evp 13,128,31,28,7,20,23,18,29,86,77,85,-31,-29,-29,64,-10,-23,-33,-27,-30,-13,-15,-24,-61,-12,-12,-7,-11,-13,-4,-6,-44,-64,-52,-6,-8,72,54,162,160,258,225,260,206,453,400,459,191,226,199,174,162,203,196,196,152,159,140,168,168,165,131,128,115,142,142,156,153,155,142,145,45,189,100,111,95,200,166,168,133,137,0,0,-10,-10,-11,-18,-19,-10,-18,-18,-18,-17,-18,64,63,68,65,212,216,210,204,212,214,208,189,219,169,191,8,8,8,8,8,8,0,8]} 1. Nf3 {[%emt 0:00:02]} g6 {[%emt 0:00:01]} 2. e4 {[%emt 0:00:06]} c5 {[%emt 0:00:02]} 3. c3 {[%emt 0:00:10]} d5 {[%emt 0:00:04]} 4. exd5 {[%emt 0:00:10]} Qxd5 {[%emt 0:00:02]} 5. d4 {[%emt 0:00:01]} Nf6 {[%emt 0:00:02]} 6. Be2 {[%emt 0:00:07]} Bg7 {[%emt 0:00:05]} 7. O-O {[%emt 0:00:04]} O-O {[%emt 0:00:03]} 8. c4 {[%emt 0:00:05]} Qd6 {[%emt 0:00:12]} 9. d5 {[%emt 0:00:16]} b5 {[%emt 0:00:18]} 10. Nc3 {[%emt 0:00:11]} b4 {[%emt 0:00:04]} (10... bxc4 $11 {keeps the balance.} 11. Nd2 Rd8 (11... Nxd5 $2 12. Nxd5 Be6 13. Nc3 $18)) 11. Nb5 $16 {[%emt 0:00:33]} Qb6 {[%emt 0:00:02] ...a6 would now be deadly.} 12. d6 {[%emt 0:00:04]} (12. a3 $16) 12... exd6 $15 {[%emt 0:00:18]} 13. Qxd6 {[%emt 0:00:05]} Ne4 {[%emt 0:00:39]} (13... Bb7 $11) 14. Qxb6 {[%emt 0:00:09]} (14. Qf4 $14 Nf6 15. a3 (15. Nc7 $2 Nh5 $19)) 14... axb6 $11 {[%emt 0:00:01]} 15. Nc7 {[%emt 0:00:30]} Ra7 {[%emt 0:00:03]} 16. Nd5 {[%emt 0:00:02]} Nd7 {[%emt 0:00:09]} 17. Bd3 {[%emt 0:00:05]} f5 {[%emt 0:00:10]} 18. Re1 {[%emt 0:00:19][%cal Bf1e1,Be1e2,Be2d2][%mdl 32]} (18. Bxe4 $2 fxe4 19. Nd2 Bb7 20. Nxe4 Ne5 $19) 18... Ndf6 {[%emt 0:00:08]} (18... Bb7 $15) 19. Nxb6 {[%emt 0:00:08]} Be6 {[%emt 0:00:01] With the idea ...Rb8.} 20. Ng5 {[%emt 0:00:03]} Nxg5 {[%emt 0:00:11]} 21. Bxg5 {[%emt 0:00:03] [#]} Ne4 $1 {[%emt 0:00:02]} 22. Bxe4 {[%emt 0:00:05]} (22. Bc1 Bd4) 22... fxe4 {[%emt 0:00:01]} 23. Re2 {[%emt 0:00:12][%cal Oh2h4]} b3 {[%emt 0:00:09]} (23... Ra6 $15 {should be considered.} 24. Nd5 Bxd5 25. cxd5 Rf5) 24. a4 {[%emt 0:00:06][%cal Oa1a3,Ba2a4,Ba4a5,Ba5a6][%mdl 32] White is weak on the light squares} Bd4 {[%emt 0:00:04]} (24... Rb8 $11 25. Nd5 Bxd5 26. cxd5 Rb4) 25. Be3 {[%emt 0:00:04]} Bg4 {[%emt 0:00:03] [#]} (25... Rd8 $14) 26. Rd2 $1 $18 {[%emt 0:00:02]} Raf7 {[%emt 0:00:14]} (26... Rf6 $16 {was called for.}) 27. h3 {[%emt 0:00:03]} Be6 {[%emt 0:00:09]} 28. a5 {[%emt 0:00:02]} h5 $2 {[%emt 0:00:27]} (28... Rd8 29. Re1 Ra7 30. Bxd4 cxd4 31. Rxe4 Kf7) 29. a6 {[%emt 0:00:13]} Ra7 30. Nd5 {[%emt 0:00:00]} (30. Bxd4 $142 cxd4 31. Rxd4) 30... Bxd5 {[%emt 0:00:05]} 31. cxd5 {[%emt 0:00:00]} Bxe3 {[%emt 0:00:02]} 32. fxe3 {[%emt 0:00:00][%mdl 4096] Endgame KRR-KRR. White is a pawn up.} Rfa8 {[%emt 0:00:02]} 33. d6 {[%emt 0:00:00]} Rd7 {[%emt 0:00:01]} 34. Ra3 {[%emt 0:00:04]} Kf7 {[%emt 0:00:01]} 35. Rd5 {[%emt 0:00:03]} (35. Rxb3 $6 Rxa6 36. Rc2 Rdxd6 $14) 35... Ke6 {[%emt 0:00:01]} 36. Rxc5 {[%emt 0:00:01] Strongly threatening Rg5.} Rxd6 {[%emt 0:00:00]} 37. Rxb3 {[%emt 0:00:02]} Raxa6 {[%emt 0:00:01]} 38. Rc4 {[%emt 0:00:01]} Ke5 {[%emt 0:00:04]} 39. Rbb4 {[%emt 0:00:02]} Rd2 {[%emt 0:00:05]} 40. Rxe4+ {[%emt 0:00:02]} Kf6 {[%emt 0:00:01]} 41. Rf4+ {[%emt 0:00:01]} Kg7 {[%emt 0:00:00]} 42. Rf2 {[%emt 0:00:02]} (42. Rb7+ $16 Kh6 43. Rf8) 42... Rd3 {[%emt 0:00:01]} ({Better is} 42... Ra1+ $14 43. Rf1 Ra2) 43. e4 {[%emt 0:00:02]} (43. Rb7+ $18 Kh6 44. Rff7) 43... Re3 $16 {[%emt 0:00:01]} 44. Rf3 {[%emt 0:00:03]} Ra1+ {[%emt 0:00:01]} (44... Re2 $16) 45. Kh2 {[%emt 0:00:01]} Ree1 {[%emt 0:00:00] ( -> ...h4)} 46. Rb7+ {[%emt 0:00:04]} Kh6 {[%emt 0:00:01][%cal Oh5h4] ( -> ...h4!)} 47. h4 {[%emt 0:00:02]} (47. Rf4 $16) 47... Rxe4 $11 {[%emt 0:00:01]} 48. Kg3 {[%emt 0:00:02]} Rg4+ {[%emt 0:00:01]} 49. Kh2 {[%emt 0:00:02]} Rxh4+ {[%emt 0:00:01]} 50. Rh3 {[%emt 0:00:01]} Rc4 {[%emt 0:00:01]} 51. Rb6 {[%emt 0:00:01]} Rcc1 {[%emt 0:00:01]} 52. Rc3 {[%emt 0:00:10]} Rh1+ {[%emt 0:00:02]} 53. Kg3 {[%emt 0:00:00]} Rhd1 {[%emt 0:00:03]} (53... Rad1 $11) 54. Rcc6 $14 {[%emt 0:00:00]} Rd3+ {[%emt 0:00:00]} 55. Kh2 {[%emt 0:00:00]} Ra4 {[%emt 0:00:12]} (55... Kg5 $14) 56. Rxg6+ $18 {[%emt 0:00:00]} Kh7 {[%emt 0:00:00]} 57. Rh6+ {[%emt 0:00:00]} Kg7 {[%emt 0:00:01]} 58. Rxh5 {[%emt 0:00:01]} Rdd4 {[%emt 0:00:04]} 59. Rh3 {[%emt 0:00:02]} Re4 {[%emt 0:00:03]} 60. b3 {[%emt 0:00:01]} Rad4 {[%emt 0:00:01] [#]} 61. b4 $2 {[%emt 0:00:02]} Rxb4 $11 {[%emt 0:00:01]} 62. Rxb4 {[%emt 0:00:02]} Rxb4 {[%emt 0:00:00]} 63. Rg3+ {[%emt 0:00:02]} Kh6 {[%emt 0:00:01]} 64. Rh3+ {[%emt 0:00:01]} Kg6 {[%emt 0:00:01]} 1/2-1/2

[Event "European Women Blitz-ch 2024"]
[Site "Monaco"]
[Date "2025.01.10"]
[Round "2.18"]
[White "Kulon, Klaudia"]
[Black "Dornbusch, Tatiana"]
[Result "1-0"]
[Annotator "TA"]
[ECO "A29"]
[WhiteElo "2393"]
[BlackElo "2234"]
[PlyCount "67"]
[EventDate "2025.01.06"]
[EventType "swiss"]
[EventCountry "MNC"]
[SourceTitle "playchess.com"]
[Source "ChessBase"]
[SourceQuality "1"]
[TimeControl "180+2"]

{[%evp 19,67,14,20,12,21,0,62,8,9,-5,54,60,45,0,0,0,49,66,104,48,77,-28,-25,-10,-26,-49,-52,-60,-8,-89,-50,-123,-117,-126,-120,-112,0,0,34,32,43,35,38,22,49,27,127,115,172,183]} 1. c4 {[%emt 0:00:02]} e5 {[%emt 0:00:02]} 2. g3 {[%emt 0:00:01]} Nf6 {[%emt 0:00:05]} 3. Bg2 {[%emt 0:00:01]} d5 {[%emt 0:00:06]} 4. cxd5 {[%emt 0:00:01]} Nxd5 {[%emt 0:00:01]} 5. Nc3 {[%emt 0:00:01]} Nb6 {[%emt 0:00:09]} 6. Nf3 {[%emt 0:00:01]} Nc6 {[%emt 0:00:01]} 7. O-O {[%emt 0:00:02]} Be7 {[%emt 0:00:05]} 8. a3 {[%emt 0:00:01]} a5 {[%emt 0:00:11]} 9. d3 {[%emt 0:00:02]} O-O {[%emt 0:00:05]} 10. Be3 {[%emt 0:00:01]} Be6 {[%emt 0:00:17]} 11. Bxb6 {[%emt 0:00:06]} cxb6 {[%emt 0:00:01]} 12. Rc1 {[%emt 0:00:01]} f6 {[%emt 0:00:09]} ({Black should try} 12... a4 $11) 13. Nd2 {[%emt 0:00:02]} (13. e3 $14) 13... Rc8 $11 {[%emt 0:00:13]} 14. Qa4 {[%emt 0:00:07]} Qd7 {[%emt 0:00:27]} (14... f5 $11) 15. Nc4 {[%emt 0:00:05]} Bc5 {[%emt 0:00:12]} 16. Ne4 {[%emt 0:00:17]} Nd4 {[%emt 0:00:21][%csl LRa4,LRe2]} 17. Qd1 {[%emt 0:00:08]} Qd8 {[%emt 0:00:42]} (17... a4 $11) 18. e3 $1 $14 {[%emt 0:00:16]} Nc6 {[%emt 0:00:03]} 19. Qe2 {[%emt 0:00:19]} (19. Nxc5 $16 bxc5 20. Qb3) 19... Be7 {[%emt 0:00:05]} 20. Rfd1 {[%emt 0:00:07]} (20. Nc3 $16) 20... b5 $36 {[%emt 0:00:01][%mdl 2048] Black fights for an advantage.} 21. Ncd2 {[%emt 0:00:06]} Qb6 {[%emt 0:00:01]} 22. Nc3 {[%emt 0:00:15][%cal Od3d4]} Rfd8 {[%emt 0:00:03]} 23. h3 {[%emt 0:00:26]} Rd7 {[%emt 0:00:07]} (23... b4 $15 24. axb4 (24. Na4 $2 Qb5 $19) 24... Bxb4 (24... Nxb4 25. d4 $15) (24... Qxb4 25. Nc4 $11)) 24. Kh2 {[%emt 0:00:03] [#]} (24. a4 $11) 24... Rcd8 $1 $17 {[%emt 0:00:01]} 25. Nf3 {[%emt 0:00:03]} ({Better is} 25. a4 $1 $15) 25... Bb3 {[%emt 0:00:03]} 26. Rd2 {[%emt 0:00:03][%cal Od3d4]} b4 {[%emt 0:00:06]} 27. axb4 {[%emt 0:00:03]} Nxb4 {[%emt 0:00:01]} (27... axb4 $17 28. Nb1 Bf8) 28. d4 $11 {[%emt 0:00:02]} Nc6 {[%emt 0:00:14][%cal Re5d4]} 29. dxe5 {[%emt 0:00:10]} fxe5 {[%emt 0:00:01]} 30. Rxd7 {[%emt 0:00:02]} Rxd7 {[%emt 0:00:00]} 31. Ne4 {[%emt 0:00:06]} a4 {[%emt 0:00:05]} 32. Nfg5 {[%emt 0:00:14] Hoping for Qh5. Excellent horsemanship.} h6 {[%emt 0:00:01] [#]} (32... Qd8 $11 {keeps the balance.} 33. Nf3 Qb6) 33. Qg4 $1 $16 {[%emt 0:00:01]} Qd8 {[%emt 0:00:05]} (33... Nb8 $16) 34. Ne6 {[%emt 0:00:02]} 1-0

[Event "European Women Blitz-ch 2024"]
[Site "Monaco"]
[Date "2025.01.10"]
[Round "3.1"]
[White "Stefanova, Antoaneta"]
[Black "Tsolakidou, Stavroula"]
[Result "1/2-1/2"]
[Annotator "TA"]
[ECO "D00"]
[WhiteElo "2418"]
[BlackElo "2451"]
[PlyCount "127"]
[EventDate "2025.01.06"]
[EventType "swiss"]
[EventCountry "MNC"]
[SourceTitle "playchess.com"]
[Source "ChessBase"]
[SourceQuality "1"]
[TimeControl "180+2"]

{[%evp 21,127,0,2,0,10,-37,-40,-43,0,0,0,0,0,-4,8,22,30,34,34,24,27,30,32,30,35,28,28,0,13,0,6,8,94,95,94,91,94,92,118,0,0,0,0,0,6,0,0,0,0,0,23,23,31,31,29,0,0,0,0,0,0,0,0,0,8,8,8,8,8,8,10,10,10,0,0,0,0,0,0,0,0,0,0,0,8,8,8,8,8,8,8,8,8,8,8,8,8,8,8,8,8,8,8,0,8,0,0,0]} 1. d4 {[%emt 0:00:01]} Nf6 {[%emt 0:00:01]} 2. Nf3 {[%emt 0:00:01]} g6 {[%emt 0:00:02]} 3. Nc3 {[%emt 0:00:06]} d5 {[%emt 0:00:04]} 4. Bf4 {[%emt 0:00:02]} Bg7 {[%emt 0:00:04]} 5. h3 {[%emt 0:00:03]} O-O {[%emt 0:00:06]} 6. e3 {[%emt 0:00:02]} a6 {[%emt 0:00:12]} 7. Be2 {[%emt 0:00:08]} c5 {[%emt 0:00:06]} 8. O-O {[%emt 0:00:09]} cxd4 {[%emt 0:00:15]} 9. exd4 {[%emt 0:00:04]} Nc6 {[%emt 0:00:02]} 10. Ne5 {[%emt 0:00:10]} Bf5 {[%emt 0:00:13]} 11. Re1 {[%emt 0:00:23]} Rc8 {[%emt 0:00:05]} 12. Nxc6 {[%emt 0:00:30]} Rxc6 {[%emt 0:00:02]} 13. Be5 {[%emt 0:00:00]} (13. a4 $11 {feels stronger.}) 13... Ne4 $15 {[%emt 0:00:37]} 14. Nxe4 {[%emt 0:00:13]} Bxe4 {[%emt 0:00:08]} (14... Bxe5 {simplifies} 15. dxe5 dxe4 16. Qxd8 Rxd8 17. Rad1 Rdc8) 15. c3 {[%emt 0:00:09]} Bxe5 {[%emt 0:00:11]} 16. dxe5 {[%emt 0:00:01]} Qb6 {[%emt 0:00:06]} 17. Qb3 {[%emt 0:00:21]} Qxb3 {[%emt 0:00:34]} 18. axb3 {[%emt 0:00:01]} f6 {[%emt 0:00:02]} 19. exf6 {[%emt 0:00:03]} Rcxf6 {[%emt 0:00:06]} 20. f3 {[%emt 0:00:04]} Bc2 {[%emt 0:00:04]} 21. Bd1 {[%emt 0:00:02]} Bxd1 {[%emt 0:00:08]} 22. Raxd1 {[%emt 0:00:02]} e6 {[%emt 0:00:05]} 23. c4 {[%emt 0:00:04]} Rd8 {[%emt 0:00:08]} 24. Rd4 {[%emt 0:00:05]} Kf7 {[%emt 0:00:04]} 25. Red1 {[%emt 0:00:05]} Rf5 {[%emt 0:00:04]} 26. Kf2 {[%emt 0:00:03]} Rc8 {[%emt 0:00:18]} (26... Ke7 $11) 27. g4 $16 {[%emt 0:00:04]} Rf6 {[%emt 0:00:03]} 28. cxd5 {[%emt 0:00:04]} exd5 {[%emt 0:00:02]} 29. Rxd5 {[%emt 0:01:00]} Rc2+ {[%emt 0:00:02]} 30. R1d2 {[%emt 0:00:00]} (30. Kg3 $16) 30... Rxd2+ $11 {[%emt 0:00:02]} 31. Rxd2 {[%emt 0:00:00]} Rb6 $1 {[%emt 0:00:03]} 32. Rd3 {[%emt 0:00:00]} Rb4 {[%emt 0:00:02]} 33. Ke3 {[%emt 0:00:00]} g5 {[%emt 0:00:02]} 34. Kf2 {[%emt 0:00:00]} Kg6 {[%emt 0:00:01]} 35. Kg3 {[%emt 0:00:00]} b6 {[%emt 0:00:03]} 36. h4 {[%emt 0:00:00]} gxh4+ {[%emt 0:00:02]} 37. Kxh4 {[%emt 0:00:00]} a5 {[%emt 0:00:02]} 38. f4 {[%emt 0:00:00]} Rxf4 {[%emt 0:00:03]} 39. Rd6+ {[%emt 0:00:00]} Kg7 {[%emt 0:00:01]} 40. Rxb6 {[%emt 0:00:00]} Rf2 {[%emt 0:00:02]} 41. b4 {[%emt 0:00:01]} a4 {[%emt 0:00:01]} 42. Ra6 {[%emt 0:00:01]} Rxb2 {[%emt 0:00:02]} 43. Rxa4 {[%emt 0:00:01]} h6 {[%emt 0:00:03]} 44. Ra7+ {[%emt 0:00:03]} Kg6 {[%emt 0:00:01]} 45. Ra6+ {[%emt 0:00:01]} Kg7 {[%emt 0:00:02]} 46. Rb6 {[%emt 0:00:02]} Rb3 $1 {[%emt 0:00:01]} 47. g5 {[%emt 0:00:06]} hxg5+ {[%emt 0:00:02]} 48. Kxg5 {[%emt 0:00:01]} Kf7 {[%emt 0:00:01]} 49. Kf5 {[%emt 0:00:01]} Ke7 {[%emt 0:00:01]} 50. Ke5 {[%emt 0:00:01]} Kd7 {[%emt 0:00:01]} 51. Kd5 {[%emt 0:00:01]} Kc7 {[%emt 0:00:01]} 52. Kc5 {[%emt 0:00:01]} Rh3 {[%emt 0:00:06]} 53. Kb5 {[%emt 0:00:06]} Ra3 {[%emt 0:00:05]} 54. Rh6 {[%emt 0:00:04]} Rb3 {[%emt 0:00:02]} 55. Rh7+ {[%emt 0:00:03]} Kb8 {[%emt 0:00:01]} 56. Kc5 {[%emt 0:00:03]} Rb1 {[%emt 0:00:02]} 57. b5 {[%emt 0:00:01]} Rg1 {[%emt 0:00:03]} 58. Kb6 {[%emt 0:00:03]} Rg6+ {[%emt 0:00:01]} 59. Ka5 {[%emt 0:00:01]} Rf6 {[%emt 0:00:01]} 60. Rg7 {[%emt 0:00:02]} Re6 {[%emt 0:00:01]} 61. Kb4 {[%emt 0:00:04]} Rf6 {[%emt 0:00:01]} 62. Kc5 {[%emt 0:00:01]} Rh6 {[%emt 0:00:01]} 63. b6 {[%emt 0:00:02]} Rh1 {[%emt 0:00:02]} 64. Kc6 {[%emt 0:00:03]} 1/2-1/2

[Event "European Women Blitz-ch 2024"]
[Site "Monaco"]
[Date "2025.01.10"]
[Round "3.2"]
[White "Arabidze, Meri"]
[Black "Toncheva, Nadya"]
[Result "1/2-1/2"]
[Annotator "TA"]
[ECO "D11"]
[WhiteElo "2457"]
[BlackElo "2313"]
[PlyCount "106"]
[EventDate "2025.01.06"]
[EventType "swiss"]
[EventCountry "MNC"]
[SourceTitle "playchess.com"]
[Source "ChessBase"]
[SourceQuality "1"]
[TimeControl "180+2"]

{[%evp 39,106,20,38,29,45,65,53,58,54,0,-4,-5,12,-104,-104,-105,-104,-95,-107,-104,-26,-125,-27,-294,-33,-37,-37,-435,-61,-58,-58,-131,-60,-117,-123,-283,-251,-178,-122,-121,-91,-156,-100,-105,-65,-72,-36,-59,-25,-23,-23,-199,-65,-193,-133,-142,-137,-141,-135,-129,-117,-170,-94,-91,0,-137,0,-23,0]} 1. d4 {[%emt 0:00:02]} d5 {[%emt 0:00:01]} 2. c4 {[%emt 0:00:01]} c6 {[%emt 0:00:01]} 3. Nf3 {[%emt 0:00:03]} Nf6 {[%emt 0:00:01]} 4. g3 {[%emt 0:00:00]} Bf5 {[%emt 0:00:07]} 5. Nc3 {[%emt 0:00:01]} e6 {[%emt 0:00:01]} 6. Nh4 {[%emt 0:00:02] D11: Slav Defence: 3 Nf3 sidelines and 3...Nf6 4 e3 Bg4.} Be4 {[%emt 0:00:02]} 7. f3 {[%emt 0:00:01]} Bg6 {[%emt 0:00:01]} 8. Qb3 {[%emt 0:00:01]} Qc7 {[%emt 0:00:05]} 9. Bf4 {[%emt 0:00:10]} Qc8 {[%emt 0:00:19]} 10. Bg2 {[%emt 0:00:10]} Be7 {[%emt 0:00:03]} 11. Nxg6 $146 {[%emt 0:00:03]} ({Predecessor:} 11. O-O O-O 12. Rac1 Nbd7 13. Bh3 dxc4 14. Qxc4 Nd5 15. Nxg6 hxg6 16. e4 Nxf4 17. gxf4 {0-1 Rios Escobar,A (2234)-Fiorito,J (2366) Titled Tuesday intern op 04th Apr Early blitz 2023 (6)}) 11... hxg6 {[%emt 0:00:01]} 12. e4 {[%emt 0:00:13]} dxc4 {[%emt 0:00:09]} 13. Qxc4 {[%emt 0:00:02]} Nbd7 {[%emt 0:00:07]} 14. Rd1 {[%emt 0:00:26]} O-O {[%emt 0:00:15]} 15. O-O {[%emt 0:00:02]} b5 {[%emt 0:00:14]} 16. Qe2 {[%emt 0:00:04]} b4 {[%emt 0:00:07]} 17. Na4 {[%emt 0:00:01]} c5 {[%emt 0:00:02]} 18. d5 {[%emt 0:00:18]} exd5 {[%emt 0:00:09]} 19. exd5 {[%emt 0:00:01]} Re8 {[%emt 0:00:01]} 20. Qb5 {[%emt 0:00:42]} Nh5 $1 {[%emt 0:00:10]} 21. Bc1 {[%emt 0:00:01]} Bd6 {[%emt 0:00:10]} 22. Qc6 {[%emt 0:00:08]} Be5 $1 {[%emt 0:00:09]} 23. Bh3 $1 {[%emt 0:00:24]} Nhf6 {[%emt 0:00:14]} 24. b3 {[%emt 0:00:28]} (24. Kh1 $14) 24... Bd4+ $11 {[%emt 0:00:10]} 25. Kh1 {[%emt 0:00:01]} Qd8 {[%emt 0:00:24]} 26. Bg5 {[%emt 0:00:01]} (26. d6 $11 {remains equal.}) 26... Ne5 $17 {[%emt 0:00:06]} 27. Qa6 {[%emt 0:00:10]} Qxd5 {[%emt 0:00:04]} 28. Bg2 {[%emt 0:00:02]} Re6 {[%emt 0:00:22]} ({Avoid the trap} 28... c4 $2 29. f4 Ne4 30. fxe5 Qxe5 31. Bf4 $18 (31. Qxc4 Nf2+ 32. Rxf2 Bxf2 $18)) 29. Qb5 {[%emt 0:00:09]} Qd6 {[%emt 0:00:05]} ({Black should play} 29... a6 $17 30. Qe2 Ned7) 30. f4 {[%emt 0:00:02]} (30. Bxf6 $1 $11 gxf6 31. f4) 30... Nc6 {[%emt 0:00:01]} (30... Rb8 $1 $17 {[%cal Rb8b5]} 31. fxe5 Rxe5) 31. Rfe1 $2 {[%emt 0:00:08][%mdl 8192]} (31. Bxf6 $11 gxf6 32. Nxc5 Qxc5 33. Qxc5 Bxc5 34. Rc1) 31... Rc8 $2 {[%emt 0:00:06]} (31... Ng4 $19 {...Nf2+ would now be deadly.} 32. Re2 Rb8 (32... Rae8 $2 33. Rdd2 $19)) 32. Rxe6 $15 {[%emt 0:00:01]} Qxe6 {[%emt 0:00:02]} 33. Qa6 $2 {[%emt 0:00:03][%mdl 8192]} (33. Bxf6 $15 Bxf6 34. Qxc5 (34. Nxc5 Nd4 $17)) 33... Ne7 $2 {[%emt 0:00:07]} (33... Ne4 $19 {( -> ...Nf2+)} 34. Rb1 f6) 34. Qxe6 $15 {[%emt 0:00:01]} fxe6 {[%emt 0:00:01]} 35. Re1 {[%emt 0:00:03]} (35. Bb7 $15 Rc7 36. Bf3) 35... Kf7 {[%emt 0:00:03]} (35... c4 $17 {...c3 is the strong threat.} 36. bxc4 Rxc4) 36. Rc1 {[%emt 0:00:04]} (36. Bb7 $15 Rc7 37. Ba6) 36... Ned5 $17 {[%emt 0:00:02]} 37. Rd1 $2 {[%emt 0:00:02]} (37. Bf3 $17) 37... Ne3 {[%emt 0:00:04]} 38. Rc1 {[%emt 0:00:01]} Nxg2 {[%emt 0:00:12]} (38... Nfg4 $19 39. Bb7 Nf2+ 40. Kg1 Nh3+ 41. Kh1 Rc7) 39. Kxg2 $17 Ne4 {[%emt 0:00:00]} 40. h4 {[%emt 0:00:04]} (40. Kf3 $142 Nxg5+ 41. fxg5) 40... Rc7 {[%emt 0:00:00]} (40... Nxg5 $142 41. hxg5 e5) 41. Kf3 $17 {[%emt 0:00:02]} Nxg5+ {[%emt 0:00:00]} 42. hxg5 {[%emt 0:00:01]} Rc8 {[%emt 0:00:02]} 43. Rc2 {[%emt 0:00:00]} Ke7 {[%emt 0:00:02]} 44. Ke4 $1 {[%emt 0:00:02]} Kd6 {[%emt 0:00:01]} 45. Kd3 $2 {[%emt 0:00:03]} (45. Rd2 $1 $11 {and White stays safe.} Kc6 46. Nb2) 45... Rh8 {[%emt 0:00:02]} (45... Kd5 $19 {Strongly threatening ...Rh8.} 46. a3 Rb8 (46... bxa3 47. Nc3+ Bxc3 48. Kxc3 $17) 47. axb4 Rxb4 48. Nc3+ Kc6) 46. Ke4 {[%emt 0:00:02]} (46. Kc4 $1 $15) 46... Rh3 {[%emt 0:00:01]} (46... Rh1 $19 47. Re2 Rb1) 47. Kf3 {[%emt 0:00:01]} Rh1 {[%emt 0:00:02]} 48. Nb2 {[%emt 0:00:01]} Kd5 {[%emt 0:00:03]} 49. Nc4 {[%emt 0:00:01]} Rf1+ {[%emt 0:00:01]} 50. Kg2 {[%emt 0:00:02] [#]} (50. Kg4 $17) 50... Rg1+ {[%emt 0:00:04]} (50... Rd1 $1 $19 51. Re2 Rc1) 51. Kf3 $17 {[%emt 0:00:00]} Rf1+ {[%emt 0:00:04]} (51... Ra1 $142 52. Ne3+ Kd6) 52. Kg2 $1 $17 {[%emt 0:00:01] [#]} Rg1+ {[%emt 0:00:02]} ({Better is} 52... Rd1 $1 $17 53. Re2 Rc1) 53. Kf3 $11 {[%emt 0:00:00]} Rf1+ {[%emt 0:00:00]} 1/2-1/2